lending/lending_fUSD_20240110
["ID","MTS","AMOUNT","RATE_DAILY","PERIOD"]
[311108079,1704909045216,-2095.9,0.00034521,2]
[311108081,1704909045225,-158.07,0.00034556,2]
[311108083,1704909045234,-157.82,0.00034571,2]
[311108085,1704909045243,-207.72,0.00034682,2]
[311108087,1704909045252,-180.0,0.00034759,2]
[311108089,1704909045262,-1000.0,0.000348,2]
[311108091,1704909045271,-207.72,0.00034859,2]
[311108093,1704909045280,-363.6873,0.0003489,2]
[311108095,1704909045289,-7500.0,0.00034898,2]
[311108097,1704909045298,-1656.48925455,0.000349,2]
[311108099,1704909045308,-1656.48925451,0.000349,2]
[311108101,1704909045317,-1656.48925451,0.000349,2]
[311108103,1704909045326,-1656.48925451,0.000349,2]
[311108105,1704909045335,-10005.18241853,0.00034907,10]
[311108107,1704909045344,-14146.59091898,0.00034907,10]
[311108109,1704909045353,-11526.38916202,0.00034907,10]
[311108112,1704909045362,-10206.60621765,0.00034907,10]
[311108114,1704909045371,-283.34636717,0.00034997,4]
[311108116,1704909045382,-3823.14527389,0.00035,2]
[311108117,1704909045391,-16417.45689362,0.00035,2]
[311108119,1704909045400,-5000.0,0.00035,2]
[311108121,1704909045409,-2500.0,0.00035,2]
[311108124,1704909045420,-600.0,0.00035,3]
[311108125,1704909045429,-200.0,0.00035,5]
[311108127,1704909045438,-207.72,0.00035036,2]
[311108129,1704909045447,-3116.80192714,0.00035127,4]
[311108131,1704909045456,-207.72,0.00035213,2]
[311108133,1704909045466,-153.84,0.0003523,2]
[311108136,1704909045476,-157.82,0.00035238,2]
[311108138,1704909045485,-262.47852717,0.00035286,7]
[311108139,1704909045495,-207.72,0.0003539,2]
[311108141,1704909045504,-207.72,0.00035567,2]
[311108143,1704909045513,-150.0,0.00035616,2]
[311108145,1704909045522,-154.03,0.00035632,2]
[311108147,1704909045531,-207.72,0.00035744,2]
[311108150,1704909045541,-2095.9,0.00035798,2]
[311108152,1704909045550,-983.28935927,0.00035865,4]
[311108154,1704909045563,-581.99654176,0.00035865,4]
[311108156,1704909045572,-686.87814676,0.00035865,4]
[311108158,1704909045581,-880.0,0.00035882,2]
[311108160,1704909045590,-400.93,0.000359,2]
[311108162,1704909045599,-939.46,0.000359,2]
[311108164,1704909045608,-157.82,0.00035904,2]
[311108166,1704909045617,-207.72,0.00035921,2]
[311108168,1704909045626,-797.52085548,0.00035986,8]
[311108170,1704909045636,-797.52085536,0.00035986,8]
[311108172,1704909045645,-797.52085536,0.00035986,8]
[311108174,1704909045656,-558.99,0.00036,2]
[311108176,1704909045665,-151.15,0.00036,2]
[311108178,1704909045674,-151.15,0.00036,2]
[311108180,1704909045683,-13515.31582056,0.00036089,2]
[311108182,1704909045691,-208.20185671,0.00036089,2]
[311108184,1704909045703,-460.67,0.00036089,2]
[311108186,1704909045714,-12846.44396378,0.00036089,2]
[311108188,1704909045723,-9757.61783947,0.00036089,2]
[311108191,1704909045734,-332.28537817,0.00036089,2]
[311108193,1704909045750,-1677.30423852,0.00036089,2]
[311108196,1704909045769,-1284.05695113,0.00036089,2]
[311108198,1704909045780,-464.0514132,0.00036089,2]
[311108200,1704909045790,-570.8517457,0.00036089,2]
[311108203,1704909045801,-12944.46407479,0.00036089,2]
[311108205,1704909045810,-13515.31582049,0.00036089,2]
[311108207,1704909045819,-357.3762264,0.00036095,4]
[311108209,1704909045828,-167.03044025,0.00036095,4]
[311108211,1704909045837,-483.16093401,0.00036095,6]
[311108213,1704909045846,-255.9605763,0.00036095,6]
[311108214,1704909045856,-446.6495864,0.00036095,6]
[311108216,1704909045865,-1100.45589374,0.00036095,8]
[311108218,1704909045874,-301.53161202,0.00036095,6]
[311108220,1704909045885,-207.72,0.00036098,2]
[311108222,1704909045894,-1656.48925451,0.00036116,2]
[311108224,1704909045902,-151.15,0.0003616,2]
[311108226,1704909045911,-13515.31582049,0.0003617,2]
[311108228,1704909045920,-153.84,0.00036182,2]
[311108230,1704909045929,-1134.38376228,0.00036238,3]
[311108232,1704909045938,-1047.55326202,0.00036238,3]
[311108234,1704909045947,-278.49,0.00036243,2]
[311108259,1704909046119,-207.72,0.00036275,2]
[311108261,1704909046128,-167.0,0.00036338,2]
[311108263,1704909046139,-205.0,0.00036388,7]
[311108265,1704909046148,-221.0060277,0.00036422,2]
[311108267,1704909046157,-194.31,0.00036451,2]
[311108269,1704909046166,-207.72,0.00036452,2]
[311108271,1704909046177,-25737.17737743,0.000365,6]
[311108275,1704909046187,-150.0,0.00036554,2]
[311108278,1704909046196,-157.82,0.00036571,2]
[311108280,1704909046205,-1521.0,0.000366,7]
[311108282,1704909046214,-374.5,0.00036613,15]
[311108284,1704909046223,-207.72,0.00036629,2]
[311108286,1704909046232,-23660.0134886,0.0003669,2]
[311108288,1704909046241,-1057.44139681,0.00036759,9]
[311108290,1704909046250,-151.47547876,0.00036759,2]
[311108292,1704909046258,-207.72,0.00036806,2]
[311108294,1704909046268,-262.47852717,0.00036824,8]
[311108296,1704909046277,-181.82431495,0.00036848,4]
[311108298,1704909046286,-939.46,0.00036859,2]
[311108300,1704909046295,-400.93,0.00036859,2]
[311108302,1704909046304,-939.46,0.00036859,2]
[311108304,1704909046313,-939.46,0.00036859,2]
[311108306,1704909046322,-400.93,0.00036859,2]
[311108308,1704909046331,-939.46,0.00036859,2]
[311108310,1704909046340,-372.17,0.00036859,2]
[311108312,1704909046349,-718.82,0.00036859,2]
[311108314,1704909046358,-1321.53541025,0.00036866,2]
[311108316,1704909046367,-1012.5069,0.00036876,2]
[311108318,1704909046376,-1000.0,0.000369,2]
[311108320,1704909046388,-1586.823483,0.000369,2]
[311108322,1704909046397,-807.98108658,0.000369,2]
[311108324,1704909046406,-150.0,0.00036913,2]
[311108326,1704909046415,-801.86,0.00036931,2]
[311108327,1704909046425,-939.46,0.00036931,2]
[311108328,1704909046434,-151.15,0.00036963,2]
[311108329,1704909046443,-2992.74938501,0.00036967,4]
[311108330,1704909046453,-169.61,0.00036971,2]
[311108331,1704909046462,-169.61,0.00036971,2]
[311108332,1704909046471,-143836.36097716,0.00036972,10]
[311108333,1704909046484,-51079.38502784,0.00036972,10]
[311108334,1704909046493,-155.0,0.00036974,2]
[311108335,1704909046502,-442.66466118,0.00036974,4]
[311108337,1704909046511,-402.36333646,0.00036974,4]
[311108339,1704909046521,-384.08281053,0.00036974,4]
[311108341,1704909046529,-688.73360525,0.00036974,2]
[311108343,1704909046538,-497.54067552,0.00036974,4]
[311108345,1704909046548,-657.651084,0.00036975,4]
[311108347,1704909046557,-167.43225085,0.00036975,2]
[311108349,1704909046567,-217.52826999,0.00036975,4]
[311108351,1704909046576,-2803.35731333,0.00036975,4]
[311108353,1704909046585,-759.60047407,0.00036975,4]
[311108355,1704909046594,-363.4223378,0.00036975,10]
[311108357,1704909046604,-3487.94142388,0.00036976,7]
[311108359,1704909046614,-151.15,0.00036976,2]
[311108361,1704909046623,-3412.08049558,0.00036978,3]
[311108362,1704909046632,-481.0654624,0.00036978,4]
[311108365,1704909046642,-5000.0,0.00036978,10]
[311108366,1704909046651,-200.0,0.00036978,2]
[311108367,1704909046661,-2395.44476,0.00036978,2]
[311108369,1704909046671,-500.0,0.00036978,2]
[311108371,1704909046680,-500.0,0.00036978,2]
[311108373,1704909046689,-500.0,0.00036978,2]
[311108375,1704909046699,-500.0,0.00036978,2]
[311108377,1704909046709,-500.0,0.00036978,2]
[311108379,1704909046717,-207.72,0.00036983,2]
[311108380,1704909046727,-544.13900376,0.00036986,7]
[311108382,1704909046736,-184743.24652966,0.00036986,30]
[311108384,1704909046745,-239.09563814,0.00036986,30]
[311108386,1704909046754,-500.0,0.00036986,120]
[311108388,1704909046763,-503.18610739,0.00036986,30]
[311108390,1704909046773,-1000.0,0.00036986,60]
[311108392,1704909046782,-1000.0,0.00036986,30]
[311108394,1704909046791,-1000.0,0.00036986,30]
[311108396,1704909046800,-1965.990009,0.00036986,30]
[311108398,1704909046809,-1912.752725,0.00036986,30]
[311108400,1704909046818,-304.949637,0.00036986,30]
[311108402,1704909046827,-150.62022446,0.00036997,2]
[311108404,1704909046837,-100000.0,0.00037,2]
[311108406,1704909046846,-309.32760398,0.00037,4]
[311108408,1704909046856,-666.18362384,0.00037,7]
[311108410,1704909046865,-789.96218099,0.00037,2]
[311108412,1704909046874,-650.0,0.00037,3]
[311108414,1704909046884,-2517.31,0.00037,3]
[311108416,1704909046893,-2517.31,0.00037,3]
[311108418,1704909046903,-2517.31,0.00037,3]
[311108420,1704909046912,-2517.31,0.00037,3]
[311108422,1704909046921,-2517.31,0.00037,3]
[311108424,1704909046930,-2517.31,0.00037,3]
[311108426,1704909046939,-2517.31,0.00037,3]
[311108428,1704909046948,-2517.31,0.00037,3]
[311108430,1704909046957,-2517.31,0.00037,3]
[311108432,1704909046965,-2517.31,0.00037,3]
[311108434,1704909046975,-2517.31,0.00037,3]
[311108436,1704909046984,-2517.31,0.00037,3]
[311108438,1704909046994,-2517.31,0.00037,3]
[311108440,1704909047003,-2517.31,0.00037,3]
[311108442,1704909047012,-2517.31,0.00037,3]
[311108444,1704909047022,-2517.31,0.00037,3]
[311108446,1704909047031,-2517.31,0.00037,3]
[311108448,1704909047041,-2517.31,0.00037,3]
[311108450,1704909047050,-2517.31,0.00037,3]
[311108452,1704909047059,-2517.31,0.00037,3]
[311108454,1704909047068,-500.0,0.00037,3]
[311108456,1704909047077,-493.84,0.00037,2]
[311108458,1704909047086,-250.0,0.00037,2]
[311108460,1704909047095,-150.0,0.00037,2]
[311108462,1704909047104,-154.03,0.00037002,2]
[311108464,1704909047113,-1057.4413968,0.00037045,10]
[311108466,1704909047122,-2095.9,0.00037075,2]
[311108468,1704909047132,-438.91,0.00037133,2]
[311108470,1704909047140,-282.42,0.00037133,2]
[311108472,1704909047149,-300.0,0.00037133,2]
[311108474,1704909047159,-365.8,0.00037133,2]
[311108476,1704909047171,-407.77,0.00037133,2]
[311108478,1704909047181,-150.0,0.00037133,2]
[311108480,1704909047189,-300.0,0.00037133,2]
[311108482,1704909047199,-407.77,0.00037133,2]
[311108484,1704909047208,-150.0,0.00037133,2]
[311108486,1704909047218,-150.0,0.00037133,2]
[311108488,1704909047227,-150.0,0.00037133,2]
[311108490,1704909047236,-150.0,0.00037133,2]
[311108492,1704909047245,-153.84,0.00037134,2]
[311108494,1704909047255,-353.02431632,0.00037155,120]
[311108496,1704909047263,-1000.0,0.000372,2]
[311108498,1704909047272,-1000.0,0.000372,2]
[311108500,1704909047281,-2000.0,0.000372,2]
[311108502,1704909047289,-571.075471,0.00037217,2]
[311108504,1704909047298,-5184.814403,0.00037217,2]
[311108506,1704909047307,-364.944773,0.00037217,2]
[311108508,1704909047316,-157.82,0.00037238,2]
[311108510,1704909047325,-151.47547816,0.0003724,2]
[311108512,1704909047335,-808.75121083,0.0003724,4]
[311108514,1704909047344,-204.12036761,0.00037244,7]
[311108516,1704909047353,-150.80834968,0.00037265,7]
[311108518,1704909047362,-362.81812567,0.00037274,2]
[311108520,1704909047371,-221.0060277,0.00037289,2]
[311108521,1704909047380,-152.0,0.00037326,5]
[311108523,1704909047389,-1057.4413968,0.0003733,10]
[311108525,1704909047398,-150.0,0.00037491,2]
[311108527,1704909047407,-1000.0,0.000375,2]
[311108529,1704909047417,-1321.53541025,0.000375,2]
[311108531,1704909047426,-432.85816695,0.0003754,4]
[311108533,1704909047436,-150.0,0.00037548,2]
[311108535,1704909047445,-153.0,0.00037559,5]
[311108537,1704909047454,-500.0,0.00037561,10]
[311108539,1704909047463,-4020.49525157,0.0003759,2]
[311108541,1704909047472,-13515.31582049,0.00037598,2]
[311108543,1704909047481,-1057.4413968,0.00037616,10]
[311108545,1704909047490,-157.0,0.00037625,2]
[311108547,1704909047499,-571.075471,0.00037665,2]
[311108549,1704909047508,-5184.814403,0.00037665,2]
[311108551,1704909047517,-364.944773,0.00037665,2]
[311108553,1704909047526,-174.159974,0.00037665,2]
[311108555,1704909047536,-541.49,0.0003769,10]
[311108557,1704909047545,-541.49,0.0003769,10]
[311108559,1704909047554,-1656.48925451,0.00037695,2]
[311108561,1704909047563,-3251.80766957,0.000377,45]
[311108563,1704909047573,-200.0,0.00037718,7]
[311108565,1704909047582,-151.47547816,0.00037721,2]
[311108567,1704909047591,-152.40840571,0.00037734,7]
[311108569,1704909047601,-351.0,0.000378,2]
[311108571,1704909047609,-432.0,0.000378,2]
[311108573,1704909047618,-1000.0,0.000378,2]
[311108575,1704909047628,-151.15,0.0003788,2]
[311108577,1704909047642,-6681.0,0.0003789,3]
[311108579,1704909047651,-151.15,0.0003789,2]
[311108581,1704909047660,-1878.92,0.00037892,2]
[311108583,1704909047670,-1000.0,0.000379,15]
[311108585,1704909047679,-2000.0,0.000379,30]
[311108587,1704909047688,-194764.02268864,0.000379,2]
[311108590,1704909047709,-1093.64069374,0.000379,2]
[311108593,1704909047720,-1201.84110626,0.000379,2]
[311108596,1704909047741,-323.02359802,0.000379,2]
[311108602,1704909047788,-3699.33047819,0.0003146,2]
[311108604,1704909047797,-3146.36951681,0.000379,2]
[311108606,1704909047813,-335.62,0.000379,2]
[311108608,1704909047824,-285.938,0.000379,2]
[311108611,1704909047835,-3006.35193108,0.000379,2]
[311108613,1704909047847,-1998.24732813,0.000379,2]
[311108615,1704909047857,-92229.64535925,0.000379,2]
[311108617,1704909047869,-1261.96700723,0.000379,2]
[311108619,1704909047880,-529.90929105,0.000379,2]
[311108621,1704909047895,-594.91090339,0.000379,2]
[311108624,1704909047906,-585.65050295,0.000379,2]
[311108626,1704909047917,-6422.35999999,0.000379,2]
[311108628,1704909047928,-1791.47046933,0.000379,2]
[311108687,1704909095255,544.69959441,0.000225,2]
[311108688,1704909163922,1020.79972294,0.000225,2]
[311108689,1704909164918,61.85676621,0.000225,2]
[311108690,1704909164942,1627.35608356,0.000225,2]
[311108691,1704909164966,1627.35608356,0.000225,2]
[311108692,1704909164992,15616.1010628,0.000225,2]
[311108693,1704909165995,1596.49083475,0.00018,2]
[311108694,1704909167846,7409.21190249,0.000225,2]
[311108695,1704909177329,531.67628362,0.000225,2]
[311108696,1704909180901,5050.05047375,0.000225,2]
[311108697,1704909185987,1595.42271423,0.00018,2]
[311108698,1704909195690,531.22648652,0.000225,2]
[311108699,1704909211327,531.45138507,0.00018,2]
[311108700,1704909228464,6653.0,0.0002,2]
[311108701,1704909228860,7409.21190249,0.00018,2]
[311108702,1704909231332,528.15706336,0.00018,2]
[311108704,1704909266259,765.0,0.00022,2]
[311108705,1704909267352,354.54922476,0.00018,2]
[311108706,1704909289033,155.0,0.00022,2]
[311108707,1704909295926,1020.79972294,0.0002,2]
[311108708,1704909303020,155.73745419,0.00022,2]
[311108709,1704909380793,882.64748262,0.00022,2]
[311108710,1704909383717,281.95610178,0.00022,2]
[311108711,1704909383945,1021.6094888,0.00022,2]
[311108712,1704909384876,845.11321729,0.00022,2]
[311108713,1704909388703,155.77362978,0.00022,2]
[311108714,1704909390834,155.0,0.00022,2]
[311108715,1704909394829,1026.5057253,0.00022,2]
[311108716,1704909396106,226.75955369,0.00022,2]
[311108717,1704909396896,538.45152826,0.0002134,2]
[311108718,1704909400077,1016.57178064,0.00022,2]
[311108719,1704909401929,155.0,0.00022,2]
[311108720,1704909404713,758.86755366,0.00022,2]
[311108721,1704909413871,155.0,0.00022,2]
[311108722,1704909414368,155.45778408,0.00022,2]
[311108723,1704909416830,155.0,0.00022,2]
[311108724,1704909418826,291.58726637,0.00022,2]
[311108725,1704909419912,235.79469252,0.00022,2]
[311108726,1704909420139,155.0,0.00022,2]
[311108727,1704909420180,155.0,0.00022,2]
[311108728,1704909420211,155.82902494,0.00022,2]
[311108729,1704909422362,316.51956569,0.0002178,2]
[311108730,1704909422452,167.97016056,5e-05,2]
[311108731,1704909423057,204.56795186,0.00022,2]
[311108732,1704909423711,282.23575241,0.00022,2]
[311108733,1704909423753,176.90983531,0.00022,2]
[311108734,1704909424624,169.80821327,0.00022,2]
[311108735,1704909424897,213.83684586,0.0002134,2]
[311108736,1704909425079,155.0,0.00022,2]
[311108737,1704909426298,168.58587249,0.00022,2]
[311108738,1704909426461,283.72064284,0.00022,2]
[311108739,1704909426690,155.0,0.00022,2]
[311108740,1704909427039,360.50027838,0.00022,2]
[311108741,1704909427960,155.0,0.00022,2]
[311108742,1704909430038,282.67530798,0.00022,2]
[311108743,1704909430110,312.89534923,0.00022,2]
[311108744,1704909430533,520.56606475,0.00022,2]
[311108745,1704909430960,206.8876125,0.00022,2]
[311108746,1704909432360,155.0,0.00022,2]
[311108747,1704909432980,280.78257921,0.00022,2]
[311108748,1704909434035,155.87221421,0.00022,2]
[311108749,1704909436173,155.0,0.00022,2]
[311108750,1704909438129,155.0,0.00022,2]
[311108751,1704909438826,291.58726637,0.00022,2]
[311108752,1704909438854,155.24335567,0.00022,2]
[311108753,1704909439282,788.75024954,0.00022,2]
[311108754,1704909440380,446.64129223,0.00020468,2]
[311108755,1704909440891,401.58703631,0.0002134,2]
[311108756,1704909441749,176.90983531,0.00022,2]
[311108757,1704909442303,732.05269482,0.00022,2]
[311108758,1704909442715,155.0,0.00022,2]
[311108759,1704909442794,883.53200133,0.00022,2]
[311108760,1704909444788,855.73420293,0.00022,2]
[311108761,1704909444843,1031.56152328,0.00022,2]
[311108762,1704909445709,282.23575241,0.00022,2]
[311108763,1704909445935,155.0,0.00022,2]
[311108764,1704909446831,532.55789459,0.00022,2]
[311108765,1704909446945,18932.66999613,0.00022,2]
[311108766,1704909448019,1021.19252463,0.00022,2]
[311108767,1704909448047,378.76513653,0.00022,2]
[311108768,1704909448119,312.89534923,0.00022,2]
[311108769,1704909449031,360.50027838,0.00022,2]
[311108770,1704909449059,155.0,0.00022,2]
[311108771,1704909449606,3197.79936034,0.00022,2]
[311108772,1704909450019,1596.49083475,0.000176,2]
[311108773,1704909450368,155.0,0.00022,2]
[311108774,1704909450540,520.56606475,0.00022,2]
[311108775,1704909450678,845.11321729,0.00022,2]
[311108776,1704909450965,608.76242079,0.00022,2]
[311108777,1704909451171,543.24680198,0.00022,2]
[311108778,1704909452968,1890.54671534,0.00022,2]
[311108779,1704909453366,531.45138507,0.00022,2]
[311108780,1704909453398,7411.89166272,0.00022,2]
[311108781,1704909453951,217.6419019,0.00022,2]
[311108782,1704909454478,155.0,0.00022,2]
[311108783,1704909454568,1362.16515976,0.0002178,2]
[311108784,1704909454609,283.72064284,0.00022,2]
[311108785,1704909457479,5182.0088255,0.00022,2]
[311108786,1704909458177,155.0,0.00022,2]
[311108787,1704909458796,883.53200133,0.00022,2]
[311108788,1704909460383,446.64129223,0.00020468,2]
[311108789,1704909460785,854.98308851,0.00022,2]
[311108790,1704909461943,155.0,0.00022,2]
[311108791,1704909462699,155.0,0.00022,2]
[311108792,1704909462850,532.55789459,0.00022,2]
[311108793,1704909462912,401.58703631,0.0002134,2]
[311108794,1704909464327,1095.55776116,0.00022,2]
[311108795,1704909464835,1031.56152328,0.00022,2]
[311108796,1704909464940,18932.66999613,0.00022,2]
[311108797,1704909465300,6072.64665498,0.00022,2]
[311108798,1704909465634,781.74239123,0.00022,2]
[311108799,1704909465762,176.98991788,0.00022,2]
[311108800,1704909466013,1596.49083475,0.000176,2]
[311108801,1704909466642,520.56606475,0.00022,2]
[311108802,1704909466684,845.11321729,0.00022,2]
[311108803,1704909467065,155.0,0.00022,2]
[311108804,1704909467940,1021.19252463,0.00022,2]
[311108805,1704909468361,155.0,0.00022,2]
[311108806,1704909469043,360.50027838,0.00022,2]
[311108807,1704909469381,7411.89166272,0.00022,2]
[311108808,1704909470966,608.63905508,0.00022,2]
[311108809,1704909471185,543.47920788,0.00022,2]
[311108810,1704909473109,1890.54671534,0.00022,2]
[311108811,1704909474118,155.0,0.00022,2]
[311108812,1704909475266,15676.33896332,0.00022,2]
[311108813,1704909476498,242.88431625,0.00022,2]
[311108814,1704909476529,283.72064284,0.00022,2]
[311108815,1704909476811,883.53200133,0.00022,2]
[311108816,1704909476840,291.58726637,0.00022,2]
[311108817,1704909477353,535.52856936,0.00022,2]
[311108818,1704909478784,855.73420293,0.00022,2]
[311108819,1704909478877,446.64129223,0.00020468,2]
[311108820,1704909478909,403.28352331,0.0002134,2]
[311108821,1704909479253,5182.0088255,0.00022,2]
[311108822,1704909479347,531.85204661,0.00022,2]
[311108823,1704909480126,312.89534923,0.00022,2]
[311108824,1704909480689,304.23735471,0.00022,2]
[311108825,1704909481278,6072.64665498,0.00022,2]
[311108826,1704909481947,263.23464751,0.00022,2]
[311108827,1704909482537,520.56606475,0.00022,2]
[311108828,1704909483065,155.0,0.00022,2]
[311108829,1704909485577,155.0,0.0002,2]
[311108830,1704909485727,282.23575241,0.00022,2]
[311108831,1704909485762,176.98991788,0.00022,2]
[311108832,1704909485940,1021.19252463,0.00022,2]
[311108833,1704909486698,845.11321729,0.00022,2]
[311108834,1704909486946,18932.66999613,0.00022,2]
[311108835,1704909488322,1096.02714429,0.00022,2]
[311108836,1704909488402,155.0,0.00022,2]
[311108837,1704909489054,360.50027838,0.00022,2]
[311108838,1704909491163,543.47920788,0.00022,2]
[311108839,1704909492943,1890.54671534,0.00022,2]
[311108840,1704909493878,2691.28194893,0.00022,2]
[311108841,1704909494162,155.0,0.00022,2]
[311108842,1704909494447,283.72064284,0.00022,2]
[311108843,1704909494826,883.53200133,0.00022,2]
[311108844,1704909496162,312.89534923,0.00022,2]
[311108845,1704909496787,854.98308851,0.00022,2]
[311108846,1704909496873,408.89966322,0.00020468,2]
[311108847,1704909497330,728.00554382,0.00021,2]
[311108848,1704909497365,15683.21613264,0.00022,2]
[311108849,1704909497404,532.32261193,0.00022,2]
[311108850,1704909498018,1596.02913964,0.000176,2]
[311108851,1704909499059,189.44894637,0.00022,2]
[311108852,1704909499240,5182.0088255,0.00022,2]
[311108853,1704909499270,6072.64665498,0.00022,2]
[311108854,1704909500830,291.71338211,0.00022,2]
[311108855,1704909501722,282.23575241,0.00022,2]
[311108856,1704909502536,348.51968809,0.00022,2]
[311108857,1704909502681,845.11321729,0.00022,2]
[311108858,1704909502835,1031.99438221,0.00022,2]
[311108859,1704909504302,1095.08837803,0.00022,2]
[311108860,1704909504358,224.01258322,0.00022,2]
[311108861,1704909504447,3120.33476813,0.00021848,2]
[311108862,1704909504947,18932.66999613,0.00022,2]
[311108863,1704909505946,1021.19252463,0.00022,2]
[311108864,1704909507043,360.50027838,0.00022,2]
[311108865,1704909509741,176.98991788,0.00022,2]
[311108866,1704909510668,620.82398002,0.00022078,2]
[311108867,1704909511176,543.47920788,0.00022,2]
[311108868,1704909512450,282.39821502,0.00022,2]
[311108869,1704909512810,855.35864572,0.00022,2]
[311108870,1704909513144,728.00554382,0.00021,2]
[311108871,1704909514125,312.89534923,0.00022,2]
[311108872,1704909515285,6072.64665498,0.00022,2]
[311108873,1704909516932,3184.56736085,0.00022078,2]
[311108874,1704909517280,15683.21613264,0.00022,2]
[311108875,1704909517353,532.32261193,0.00022,2]
[311108876,1704909517735,282.36378265,0.00022,2]
[311108877,1704909518701,845.11321729,0.00022,2]
[311108878,1704909518811,883.53200133,0.00022,2]
[311108879,1704909518841,291.71338211,0.00022,2]
[311108880,1704909519252,5182.0088255,0.00022,2]
[311108881,1704909520315,1090.81313736,0.00022,2]
[311108882,1704909522844,605.00984432,0.00022,2]
[311108883,1704909523175,1890.54671534,0.00022,2]
[311108884,1704909523206,360.50027838,0.00022,2]
[311108885,1704909524800,2470.7261908,0.00022308,2]
[311108886,1704909526952,18932.66999613,0.00022,2]
[311108887,1704909528792,855.35864572,0.00022,2]
[311108888,1704909529751,176.8097185,0.00022,2]
[311108889,1704909530812,621.10234536,0.00022078,2]
[311108890,1704909532147,312.89534923,0.00022,2]
[311108891,1704909535143,728.00554382,0.00021,2]
[311108892,1704909535173,543.47920788,0.00022,2]
[311108893,1704909535280,15683.21613264,0.00022,2]
[311108894,1704909535726,282.10772217,0.00022,2]
[311108895,1704909536711,850.29410141,0.00022,2]
[311108896,1704909536810,883.53200133,0.00022,2]
[311108897,1704909537945,1021.19252463,0.00022,2]
[311108898,1704909538905,3184.56736085,0.00022076,2]
[311108899,1704909539286,6072.64665498,0.00022,2]
[311108900,1704909539852,532.32261193,0.00022,2]
[311108901,1704909540835,291.33503489,0.00022,2]
[311108902,1704909541065,360.50027838,0.00022,2]
[311108903,1704909543274,5182.0088255,0.00022,2]
[311108904,1704909544445,3120.33476813,0.00021846,2]
[311108905,1704909547012,2470.7261908,0.00022306,2]
[311108906,1704909548249,312.89534923,0.00022,2]
[311108907,1704909548652,621.10234536,0.00022076,2]
[311108908,1704909548790,855.35864572,0.00022,2]
[311108909,1704909550958,1838.89593157,0.00022,2]
[311108910,1704909551151,728.00554382,0.00021,2]
[311108911,1704909553274,15683.21613264,0.00022,2]
[311108912,1704909555945,1021.19252463,0.00022,2]
[311108913,1704909556800,472.30843214,0.00022,2]
[311108914,1704909556944,18932.66999613,0.00022,2]
[311108915,1704909557336,575.67191605,0.00022,2]
[311108916,1704909557368,6072.64665498,0.00022,2]
[311108917,1704909557855,532.32261193,0.00022,2]
[311108918,1704909558521,360.33822996,0.00018397,2]
[311108919,1704909561060,237.40277125,0.00022,2]
[311108920,1704909561285,2979.47080485,0.00022,2]
[311108921,1704909561739,282.36378265,0.00022,2]
[311108922,1704909562443,3121.7146224,0.00021846,2]
[311108923,1704909562824,291.71338211,0.00022,2]
[311108924,1704909564146,358.75391899,0.00022,2]